Cogmind - Beta 13 @@@ ROGUE MODE // 2024.03.13 @ 11:56:37 Player: TheLargestBoi Result: Self-destructed Performance ------------- Evolutions (3) 1500 Regions Visited (6) 1200 Robots Destroyed (110) 550 Value Destroyed (2762) 2762 Prototype IDs (6) 120 Alien Tech Used (0) 0 Bonus (313) 313 TOTAL SCORE: 6445 Bonus ------- High Alert Combat Kills 35 Follower Combat Kills 278 Cogmind --------- Core Integrity 533/700 Matter 300/300 Energy 150/150 System Corruption 0% Temperature Cool (0) Movement Walking (120) Location -7/Lower Caves Parts ------- > --- POWER (1) -------- Light Angular Momentum Engine > --- PROPULSION (4) --- Carbon-fiber Leg Carbon-fiber Leg Carbon-fiber Leg Improved Carbon-fiber Leg > --- UTILITY (6) ------ Medium Storage Unit Experimental Sensor Array Improved Signal Interpreter Improved Melee Analysis Suite Improved Melee Analysis Suite Microactuators > --- WEAPON (2) ------- (None) > --- INVENTORY (10) --- Light Angular Momentum Engine Carbon-fiber Leg Carbon-fiber Leg Carbon-fiber Leg Core Analyzer Actuator Array Advanced ECM Suite System Restoration Module Proton Missile Launcher Peak State ------------ > --- POWER ------------ Nuclear Core > --- PROPULSION ------- Carbon-fiber Leg Improved Carbon-fiber Leg Improved Titanium Leg Improved Titanium Leg > --- UTILITY ---------- Medium Storage Unit Experimental Sensor Array Improved Signal Interpreter Improved Melee Analysis Suite Improved Melee Analysis Suite Microactuators > --- WEAPON ----------- Greatsword > --- INVENTORY -------- Light Deuterium Engine Carbon-fiber Leg Carbon-fiber Leg Improved Titanium Leg Core Analyzer Actuator Array Advanced ECM Suite System Restoration Module Proton Missile Launcher [Rating: 54] Favorites ----------- Power Light Deuterium Engine Engine Light Deuterium Engine Power Core Light Nuclear Core Propulsion Aluminum Leg Leg Aluminum Leg Hover Unit Improved Hover Unit Utility Hacking Suite Device Microactuators Storage Medium Storage Unit Processor Improved Signal Interpreter Hackware Hacking Suite Weapon Katana Energy Gun Medium Laser Energy Cannon Beam Cannon Ballistic Cannon Gauss Cannon Launcher Grenade Launcher Impact Weapon Heavy Flail Slashing Weapon Katana Build | -11 -10 -9 -9 -8 -7 -7 ------- Run | Yrd Mat Mat Min Mat Fac Low Slots Evolved 6 | . . 2 . 2 2 . Power . | . . . . . . . Propulsion 2 | . . 1 . 1 . . Utility 4 | . . 1 . 1 2 . Weapon . | . . . . . . . Parts Attached 98 | 7 10 19 9 21 26 6 Power 19 | 1 3 4 2 3 5 1 Engine 14 | 1 3 4 2 1 2 1 Core 5 | . . . . 2 3 . Reactor . | . . . . . . . Propulsion 26 | 2 . 4 1 8 7 4 Treads . | . . . . . . . Leg 19 | 2 . . . 6 7 4 Wheel . | . . . . . . . Hover 7 | . . 4 1 2 . . Flight . | . . . . . . . Utility 26 | 2 1 3 3 5 11 1 Device 17 | 1 1 1 2 3 8 1 Storage 3 | 1 . 1 . . 1 . Processor 4 | . . . 1 2 1 . Hackware 2 | . . 1 . . 1 . Protection . | . . . . . . . Artifact . | . . . . . . . Weapon 27 | 2 6 8 3 5 3 . Energy Gun 8 | 2 1 5 . . . . Energy Cannon 4 | . 3 1 . . . . Ballistic Gun . | . . . . . . . Ballistic Cannon 2 | . . . . 1 1 . Launcher 6 | . 2 2 2 . . . Special Weapon . | . . . . . . . Impact Weapon 2 | . . . . 2 . . Slashing Weapon 5 | . . . 1 2 2 . Piercing Weapon . | . . . . . . . Special Melee Weapon . | . . . . . . . Unidentified Prototypes 2 | . . 1 1 . . . Parts Lost 19 | . . 3 1 6 6 3 Power 4 | . . 2 . 1 1 . Propulsion 10 | . . 1 1 4 3 1 Utility 3 | . . . . . 2 1 Weapon 2 | . . . . 1 . 1 Highest Loss Streak 5 | . . 1 1 5 2 1 To Critical Strikes . | . . . . . . . Average Slot Usage (%) 95 | . 99 95 98 91 98 91 Engine 7 | . 14 10 11 6 4 4 Core 1 | . . . . 2 2 3 Leg 19 | . 28 1 . 6 29 29 Hover 11 | . . 30 32 27 . . Device 11 | . 14 13 9 8 12 14 Storage 9 | . 14 11 11 9 7 7 Processor 9 | . . . 1 9 15 23 Hackware 6 | . . 8 11 9 8 . Energy Gun 3 | . 15 13 1 . . . Energy Cannon 2 | . 12 5 . . . . Ballistic Cannon 2 | . . . . 1 5 . Slashing Weapon 5 | . . . 10 7 7 7 Naked Turns . | . . . . . . . Heaviest Build 29 | 15 17 22 21 24 29 27 Greatest Support 75 | 20 20 21 21 45 75 73 Greatest Overweight (x) 4 | . . 2 . 4 . . Average Overweight (x) . | . . . . . . . Largest Inventory Capacity 10 | 8 8 10 10 10 10 10 Average Capacity 9 | 6 8 9 10 10 10 10 Most Carried 10 | 7 8 10 10 10 10 10 Average Carried 8 | 4 7 8 9 8 9 8 Final Capacity 10 | 8 8 10 10 10 10 10 Final Carried 10 | 7 8 10 10 10 9 9 Class Distribution -------------------- 52% | Scavenger-Mutant 32% | Mutant 9% | Gladiator 4% | Scavenger-Gladiator Dominant Class ---------------- Mutant | -10/Materials Scavenger-Mutant | -9/Materials Scavenger-Mutant | -9/Mines Scavenger-Mutant | -8/Materials Scavenger-Mutant | -7/Factory Scavenger-Gladiator | -7/Lower Caves Resources | -11 -10 -9 -9 -8 -7 -7 ----------- Run | Yrd Mat Mat Min Mat Fac Low Matter Collected 1353 | 249 161 230 135 215 303 60 Remotely . | . . . . . . . Salvage Created 4179 | 40 480 720 216 1174 1227 322 Parts 237 | 6 34 48 19 52 64 14 Haulers Intercepted 12 | . 2 4 . 4 2 . Recyclers Shooed 3 | . . 1 . . 2 . Parts Field Recycled . | . . . . . . . Retrieved Matter . | . . . . . . . Parts Self-Destructed 2 | . . . . . . 2 Prevented . | . . . . . . . Kills | -11 -10 -9 -9 -8 -7 -7 ------- Run | Yrd Mat Mat Min Mat Fac Low Combat Hostiles Destroyed 64 | . 8 10 8 15 16 7 Melee 34 | . . . . 12 15 7 Guns 8 | . 2 4 2 . . . Cannons 2 | . 1 . . . 1 . AOE 16 | . 4 6 6 . . . Classes Destroyed 14 | 1 7 3 1 1 1 . Worker 7 | . 2 . 1 2 2 . Builder 3 | . 1 . . 1 1 . Tunneler 4 | 2 2 . . . . . Hauler 12 | . 2 4 . 4 2 . Recycler 9 | . . 3 1 2 3 . Operator 4 | . 1 . . 2 1 . Watcher 7 | . 2 2 . 2 1 . Swarmer 18 | . 3 4 6 . 2 3 Grunt 27 | . 5 3 1 13 5 . Brawler 1 | . . 1 . . . . Duelist 1 | . . . 1 . . . Sentry 9 | . . 2 . 1 6 . Hunter 2 | . . . . 1 1 . Programmer 2 | . . . . . 2 . Thug 4 | . . . . . . 4 Best Kill Streak 5 | 1 3 4 4 4 5 4 Combat Bots Only 4 | . 3 4 3 3 3 4 Max Kills in Single Turn 3 | 1 2 3 3 1 1 1 Gunslinging . | . . . . . . . Exploded 3 | . 2 3 2 . . . Melee 1 | . . . . 1 1 1 Uniques/NPCs Destroyed . | . . . . . . . Combat | -11 -10 -9 -9 -8 -7 -7 -------- Run | Yrd Mat Mat Min Mat Fac Low Hostile Shots Fired 330 | . 37 31 5 52 166 39 Missed 129 | . 15 11 2 19 68 14 Damage Taken 2634 | . 259 262 55 499 1147 412 Core 315 | . 13 48 2 85 124 43 Absorbed by Shields 76 | . . . . . 76 . Regen/Repaired (Parts) 56 | . 13 . . 43 . . Core Remaining (%) 91 | 100 94 . 87 84 . . Volleys Fired 102 | 3 36 49 8 . 6 . Largest 2 | 2 2 2 1 . 1 . Hottest 120 | 100 120 120 55 . 48 . Shots Fired 160 | 6 72 68 8 . 6 . Gun 115 | 6 47 59 3 . . . Cannon 31 | . 21 4 . . 6 . Launcher 14 | . 4 5 5 . . . Special . | . . . . . . . Kinetic 6 | . . . . . 6 . Thermal 140 | 6 68 63 3 . . . Explosive 14 | . 4 5 5 . . . Electromagnetic . | . . . . . . . Robot Hit Streak 9 | 2 6 9 3 . 2 . Robot Miss Streak 5 | 1 5 3 1 . 5 . Penetration Max . | . . . . . . . Secondary Targets . | . . . . . . . Shots Hit Robots 221 | 3 40 39 8 59 60 12 Core Hits 113 | 2 23 24 11 24 24 5 Critical Kills 2 | . . . . 2 . . Critical Parts Destroyed 5 | . . . . 5 . . Critical Strikes 31 | 1 4 3 . 12 10 1 Burn 8 | 1 4 3 . . . . Blast 2 | . . . . . 2 . Smash 7 | . . . . 7 . . Sever 14 | . . . . 5 8 1 Melee Attacks 180 | . . . 5 89 71 15 Impact 18 | . . . . 18 . . Slashing 162 | . . . 5 71 71 15 Piercing . | . . . . . . . Sneak Attacks 26 | . . . 3 12 10 1 Combat Hostiles 2 | . . . . . 1 1 Follow-up Attacks . | . . . . . . . Damage Inflicted 8968 | 49 943 1165 629 2676 2800 706 Guns 1148 | 49 370 683 46 . . . Cannons 394 | . 247 36 . . 111 . Explosions 1068 | . 326 408 334 . . . Melee 6320 | . . . 249 2676 2689 706 Ramming 38 | . . 38 . . . . Kinetic 111 | . . . . . 111 . Thermal 1443 | 49 617 731 46 . . . Explosive 1034 | . 326 374 334 . . . Electromagnetic 22 | . . 22 . . . . Impact 900 | . . . . 900 . . Slashing 5420 | . . . 249 1776 2689 706 Piercing . | . . . . . . . Highest Corruption 2 | . 2 1 1 . 2 . Average Corruption 1 | . 2 1 1 . 1 . Corruption Purged 2 | . . . . . 2 . Corruption Blocked . | . . . . . . . Effects 16 | . . 1 . . 15 . Message Errors 4 | . . . . . 4 . Matter Fused 2 | . . . . . 2 . Heat Flow Errors 3 | . . 1 . . 2 . Energy Discharges 1 | . . . . . 1 . Parts Rejected 1 | . . . . . 1 . Data Loss (minor) 3 | . . . . . 3 . Data Loss (major) 1 | . . . . . 1 . Alerts 1 | . . . . . 1 . Overload Shots . | . . . . . . . Overflow Damage 921 | . . 19 89 468 260 85 Projectiles . | . . . . . . . Explosions 48 | . . 19 29 . . . Melee 873 | . . . 60 468 260 85 Knockbacks 7 | . . 1 . 5 1 . Impact 6 | . . 1 . 5 . . Kinetic 1 | . . . . . 1 . Secondary . | . . . . . . . Self-Inflicted Damage 54 | . . 19 35 . . . Shots 2 | . . . 2 . . . Rammed 1 | . . 1 . . . . Targets Rammed 1 | . . 1 . . . . Kicked . | . . . . . . . Crushed . | . . . . . . . Highest Temperature 276 | 78 243 276 . 6 233 2 Average Temperature 78 | 33 88 44 . 6 104 2 Received Heat Transfer 875 | . 132 93 . 270 308 72 Siege Activations . | . . . . . . . Robots Corrupted . | . . . . . . . Combat Hostiles . | . . . . . . . Parts Fried 4 | . . . . 4 . . Impact Corruptions 13 | . . . . 13 . . Robots Melted 1 | . 1 . . . . . Combat Hostiles 1 | . 1 . . . . . Parts Melted 7 | . 4 3 . . . . Heat Transferred 3861 | 222 1887 1678 74 . . . Parts Sabotaged . | . . . . . . . Parts Stolen . | . . . . . . . Parts Stripped . | . . . . . . . Power Chain Reactions 1 | . . 1 . . . . Alert | -11 -10 -9 -9 -8 -7 -7 ------- Run | Yrd Mat Mat Min Mat Fac Low Peak Influence 449 | 10 163 416 449 423 233 . Initial 191 | . 6 38 121 174 191 . Average 162 | 2 71 219 343 266 98 . Maximum Alert Level 2 | . . 2 2 2 1 . Low Security (%) 63 | 100 100 31 16 29 85 . Level 1 32 | . . 66 41 65 14 . Level 2 3 | . . 2 42 4 . . Level 3 . | . . . . . . . Level 4 . | . . . . . . . Level 5 . | . . . . . . . High Security . | . . . . . . . Max Security . | . . . . . . . Squads Dispatched 12 | . 1 2 . 5 4 . Investigation 2 | . . 1 . 1 . . Extermination 3 | . . . . . 3 . Reinforcement 7 | . 1 1 . 4 1 . Assault . | . . . . . . . Garrison . | . . . . . . . Intercept . | . . . . . . . Searches Triggered . | . . . . . . . Construction Impeded 2 | . . 1 . 1 . . Haulers Reinforced . | . . . . . . . Active Scanning Responses . | . . . . . . . Cargo Convoy Interrupts . | . . . . . . . Stealth | -11 -10 -9 -9 -8 -7 -7 --------- Run | Yrd Mat Mat Min Mat Fac Low Distress Signals 5 | . . 3 . 1 1 . Communications Jammed . | . . . . . . . Distress Signals . | . . . . . . . Times Spotted 120 | . 17 18 10 26 39 10 Peak Tracking Total 7 | . 3 5 3 7 3 5 Tactical Retreats 12 | . 2 4 . 4 1 1 Traps | -11 -10 -9 -9 -8 -7 -7 ------- Run | Yrd Mat Mat Min Mat Fac Low Traps Triggered 5 | . 1 . . . 4 . Indirectly . | . . . . . . . Trap Hack Attempts . | . . . . . . . Triggered . | . . . . . . . Disarmed 6 | . 6 . . . . . Reprogrammed 3 | . . . . 3 . . Reused 1 | . . . . 1 . . Traps Extracted . | . . . . . . . Installed 1 | . . . . 1 . . Triggered 1 | . . . . 1 . . Most Traps Carried 2 | . . . 2 2 . . Machines | -11 -10 -9 -9 -8 -7 -7 ---------- Run | Yrd Mat Mat Min Mat Fac Low Machines Disabled 1 | . . 1 . . . . Max in Single Turn 1 | . . 1 . . . . Garrison Access 3 | . . . . 1 2 . Machines Repaired . | . . . . . . . Machines Dismantled . | . . . . . . . Machines Sabotaged . | . . . . . . . Overloaded Fab Kills . | . . . . . . . Hacking | -11 -10 -9 -9 -8 -7 -7 --------- Run | Yrd Mat Mat Min Mat Fac Low Machines Accessed 38 | . 9 5 1 10 13 . Terminals 23 | . 6 4 1 5 7 . Fabricators 1 | . . . . . 1 . Repair Stations 4 | . 1 . . 2 1 . Recycling Units 5 | . 2 1 . . 2 . Scanalyzers 2 | . . . . 2 . . Garrison Access 3 | . . . . 1 2 . Total Hacks 104 | . 21 17 4 36 26 . Successful 59 | . 14 10 2 23 10 . Failed 44 | . 6 7 2 13 16 . Catastrophic 5 | . 1 1 1 2 . . Database Lockouts 1 | . 1 . . . . . Manual 38 | . 11 9 2 13 3 . Terminals 69 | . 14 16 4 17 18 . Fabricators 3 | . . . . . 3 . Repair Stations 8 | . 2 . . 5 1 . Recycling Units 8 | . 5 1 . . 2 . Scanalyzers 13 | . . . . 13 . . Garrison Access 3 | . . . . 1 2 . Terminal Hacks 29 | . 7 7 2 7 6 . Record 1 | . . 1 . . . . Part Schematic 1 | . . . . . 1 . Robot Schematic 2 | . 1 . . . 1 . Robot Analysis 2 | . . 1 . 1 . . Prototype ID Bank 2 | . 1 1 . . . . Open DSF 1 | . . . . . 1 . Branch Access Points 3 | . 1 1 1 . . . Emergency Access Points 2 | . 1 . . 1 . . Terminal Index 2 | . . 1 . 1 . . Repair Station Index 1 | . . . . 1 . . Alert Level 1 | . . . . . 1 . Unreport Threat 2 | . 1 . . . 1 . Locate Traps 2 | . 1 1 . . . . Disarm Traps 1 | . 1 . . . . . Reprogram Traps 1 | . . . . 1 . . Recall Investigation 1 | . . . 1 . . . Recall Reinforcements 1 | . . 1 . . . . Registered Components 1 | . . . . . 1 . Zone Layout 2 | . . . . 2 . . Fabricator Hacks 1 | . . . . . 1 . Network Status 1 | . . . . . 1 . Repair Station Hacks 6 | . 2 . . 4 . . Scan Component 3 | . 1 . . 2 . . Repair 3 | . 1 . . 2 . . Recycling Unit Hacks 4 | . 2 1 . . 1 . Report Inventory 3 | . 1 1 . . 1 . Retrieve Components 1 | . 1 . . . . . Scanalyzer 10 | . . . . 10 . . Insert Component 5 | . . . . 5 . . Analyze 5 | . . . . 5 . . Garrison Access Hacks 3 | . . . . 1 2 . Seal Access 3 | . . . . 1 2 . Unauthorized Hacks 6 | . 3 2 . 1 . . Terminals 4 | . 1 2 . 1 . . Botnet 3 | . 1 1 . 1 . . Operators 1 | . . 1 . . . . Fabricators . | . . . . . . . Repair Stations . | . . . . . . . Recycling Units 2 | . 2 . . . . . Reject 2 | . 2 . . . . . Scanalyzers . | . . . . . . . Garrison Access . | . . . . . . . Data Cores Recovered . | . . . . . . . Used . | . . . . . . . Hacking Detections 29 | . 8 4 1 7 9 . Full Trace Events 1 | . 1 . . . . . Feedback Events . | . . . . . . . Feedback Blocked . | . . . . . . . Robot Schematics Acquired 2 | . 1 . . . 1 . Robots Built . | . . . . . . . Authchips . | . . . . . . . Time . | . . . . . . . Total Robot Build Rating . | . . . . . . . Part Schematics Acquired 5 | . . . . 4 1 . Parts Built . | . . . . . . . Authchips . | . . . . . . . Time . | . . . . . . . Total Part Build Rating . | . . . . . . . Parts Repaired 3 | . 1 . . 2 . . Time 194 | . 26 . . 168 . . Parts Recycled . | . . . . . . . Recycled Matter . | . . . . . . . Retrieved Matter . | . . . . . . . Retrieved Components 3 | . 3 . . . . . Parts Scanalyzed 4 | . . . . 4 . . Part Schematics Acquired 4 | . . . . 4 . . Parts Damaged 1 | . . . . 1 . . Bothacking | -11 -10 -9 -9 -8 -7 -7 ------------ Run | Yrd Mat Mat Min Mat Fac Low Used RIF Installer . | . . . . . . . Robots Hacked . | . . . . . . . Non-combat . | . . . . . . . Combat . | . . . . . . . Robot Hacks Applied . | . . . . . . . Relay Couplers Released . | . . . . . . . Fabnet Peak Effective % . | . . . . . . . Robots Rewired . | . . . . . . . Allies Hacked . | . . . . . . . Hacks Repelled . | . . . . . . . Allies | -11 -10 -9 -9 -8 -7 -7 -------- Run | Yrd Mat Mat Min Mat Fac Low Total Allies 12 | . . . 6 . 6 . Largest Group 5 | . . . 5 3 3 . Highest-Rated Group 93 | . . . 92 40 93 . Highest-Rated Ally 31 | . . . 31 16 31 . Total Orders . | . . . . . . . Ally Attacks 109 | . . . 18 30 61 . Total Damage 1514 | . . . 258 334 922 . Kills 13 | . . . 5 4 4 . Allies Corrupted . | . . . . . . . Allies Melted . | . . . . . . . Intel | -11 -10 -9 -9 -8 -7 -7 ------- Run | Yrd Mat Mat Min Mat Fac Low Robot Analysis Total 2 | . . 1 . 1 . . Derelict Logs Recovered 2 | . . . 1 . . 1 Drone Launches . | . . . . . . . Drone Recoveries . | . . . . . . . Exploration | -11 -10 -9 -9 -8 -7 -7 ------------- Run | Yrd Mat Mat Min Mat Fac Low Turns Passed 6984 | 118 1078 683 339 1707 2501 558 Spaces Moved 5244 | 80 695 762 416 1232 1646 413 Core 6 | 5 . . . 1 . . Treads . | . . . . . . . Legs 3040 | 75 695 37 . 174 1646 413 Wheels . | . . . . . . . Hover 2198 | . . 725 416 1057 . . Flight . | . . . . . . . Fastest Speed 48 | 50 120 52 52 48 120 120 Average Speed 91 | 115 120 55 52 58 123 121 Slowest Speed 250 | 120 120 180 52 250 127 126 Overloaded Moves . | . . . . . . . Propulsion Burnouts . | . . . . . . . Robots Hopped . | . . . . . . . Cave-ins Triggered . | . . . . . . . Exploration Rate (%) 56 | 5 92 53 67 67 44 64 Regions Visited 6 Branch Regions 2 Pre-discovered Areas . | . . . . . . . Known Exits Taken 4 | . . 1 1 1 1 . Unknown Exits Taken 2 | 1 1 . . . . . Scrap Searched 1 | . . . 1 . . . Spaces Dug 22 | . . 2 . 20 . . Terrain Destroyed 137 | . 31 38 46 20 2 . Melee 20 | . . . . 20 . . Projectile 2 | . . . . . 2 . AOE 115 | . 31 38 46 . . . Terrain Rammed . | . . . . . . . Walls Destroyed . | . . . . . . . Machines Disabled . | . . . . . . . Actions | -11 -10 -9 -9 -8 -7 -7 --------- Run | Yrd Mat Mat Min Mat Fac Low Total 7028 | 96 870 953 523 2088 2048 450 Wait 1266 | . 105 94 74 723 265 5 Move 5238 | 79 694 761 415 1231 1645 413 Hop . | . . . . . . . Pick Up 61 | 7 11 11 4 10 14 4 Fast Attach 39 | 7 2 8 3 9 6 4 Attach 19 | . . 5 2 3 8 1 Detach 6 | . . 3 1 1 1 . Swap 40 | . 8 6 4 9 12 1 Drop 74 | . 14 15 7 12 19 7 Fire 102 | 3 36 49 8 . 6 . Melee 180 | . . . 5 89 71 15 Ram 1 | . . 1 . . . . Kick . | . . . . . . . Crush . | . . . . . . . Escape Stasis 1 | . . . . . 1 . Rewire . | . . . . . . . Trap 1 | . . . . 1 . . Miscellaneous . | . . . . . . . Route ------- -11/Scrapyard -10/Materials (discovered 4 exits: *Mat x3 / *Min) -9/Materials (discovered 3 exits: *Mat / *Min x2) -9/Mines -8/Materials (discovered 2 exits: *Fac x2) -7/Factory (discovered 3 exits: *Fac x2 / *Low) -7/Lower Caves History --------- Turn | Location | Event 2 | -11/Scrapyard | Discovered new exit (range 16) 119 | -11/Scrapyard | Entered Materials 310 | -10/Materials | Build established: Mutant 448 | -10/Materials | Central database locked down 491 | -10/Materials | Discovered new exit (range 7) 502 | -10/Materials | Identified exit to Mines 743 | -10/Materials | Repaired Signal Interpreter 868 | -10/Materials | Discovered new exit (range 14) 1158 | -10/Materials | Discovered new exit (range 16) 1197 | -10/Materials | Entered another Materials area 1197 | -9/Materials | Evolved 2 slots: Propulsion x1, Utility x1 1275 | -9/Materials | Identified exit to Mines 1533 | -9/Materials | Discovered new exit (range 5) 1880 | -9/Materials | Entered Mines 1921 | -9/Mines | Escorted by a lone wolf Derelict 1977 | -9/Mines | Learned 4 Materials zone layouts 2040 | -9/Mines | Found a damaged Exp. Sensor Array with a note attached 2044 | -9/Mines | Found Prototype Device 2044 | -9/Mines | Identified Exp. Sensor Array 2062 | -9/Mines | Assisted by bots powering up and referring to "LRC-V3" 2118 | -9/Mines | Found a hidden stash of uninstalled traps 2159 | -9/Mines | Discovered new exit (range 10) 2165 | -9/Mines | Identified exit to Materials 2185 | -9/Mines | Build established: Scavenger-Mutant 2219 | -9/Mines | Entered Materials 2219 | -8/Materials | Accompanied by 3 allies 2219 | -8/Materials | Evolved 2 slots: Propulsion x1, Utility x1 2220 | -8/Materials | Identified exit to Factory 2536 | -8/Materials | Repaired Imp. Hover Unit 2604 | -8/Materials | Discovered exit to Factory (range 10) 3565 | -8/Materials | Lost 5 parts (1p4n) 3729 | -8/Materials | Repaired Broken Exp. Sensor Array 3926 | -8/Materials | Entered Factory 3926 | -7/Factory | Evolved 2 slots: Utility x2 3967 | -7/Factory | Identified exit to DSF 4803 | -7/Factory | Allied Derelicts emerged from ambush trap array 5233 | -7/Factory | Lost 3 allies 5444 | -7/Factory | Discovered new exit (range 4) 5449 | -7/Factory | Identified exit to Factory 5520 | -7/Factory | Build established: Mutant 5978 | -7/Factory | Allied Derelicts emerged from ambush trap array 6123 | -7/Factory | Discovered exit to Factory (range 12) 6191 | -7/Factory | Discovered new exit (range 3) 6214 | -7/Factory | Identified exit to Lower Caves 6284 | -7/Factory | Build established: Gladiator 6427 | -7/Factory | Entered Lower Caves 6563 | -7/Lower Caves | Encountered a Warlord checkpoint 6579 | -7/Lower Caves | Learned location of 1 exit from Factory 6625 | -7/Lower Caves | Ambushed by wild Derelicts 6959 | -7/Lower Caves | Build established: Scavenger-Gladiator 6985 | -7/Lower Caves | Attracted the attention of an 0b10 outpost 6985 | -7/Lower Caves | Self-destructed Last Messages --------------- 06643_ CE-3JK(g) destroyed. 06647_ Acquired Carbon-fiber Leg. 06651_ Dropped Imp. Titanium Leg. 06655_ Acquired Carbon-fiber Leg. 06659_ Acquired 40 matter. 06661_ Dropped Nuclear Core. 06662_ Acquired Lgt. Angular Momentum Engine. 06665_ Dropped Lgt. Deuterium Engine. 06667_ Acquired 10 matter. 06682_ Acquired Carbon-fiber Leg. 06685_ Dropped Carbon-fiber Leg. 06685_ Acquired Carbon-fiber Leg. 06690_ Dropped Carbon-fiber Leg. 06690_ Acquired Carbon-fiber Leg. 06691_ Dropped Imp. Titanium Leg. 06984_ Penetrated by Slug. 06984_ Greatsword destroyed. 06985_ Y-64 Sentinel: "DETECTED UNIDENTIFIED DERELICT." Map ----- +----------------------------------------------------+ | ?????????????????# ##?????## ## """ " | | ?????????????????####?????## ## ""$"" | | ??????????????????????????# ### " | | ?????????????????????????## ###?# """" | | ?????????????????####?#### ##???# """"" | | ?????????????????# ### ####????# "" | | ????????????????## ##???????# | | ??????????????### #????????##### | | ?????????????## ##???????????## # | | ?????????????# ##??????? ????# ## | | ?????????????# ##????????# ???# ##? | | ?????????????## #????????## ??# ###?? | | ??????????????# ### #??????## ?# ##???? | | ?????##??###### #?## #??#### ?## #????? | | ????## ### #??# #?# ?## #????? | | ???## ## #??# ##??# ?# #????? | | ???# # ##### #?########## ## #????? | | ???# ##### #????## ?# #????? | | ???# # #### #???# ?# #????? | | ???# #???# #???# # ## ###???? | | ???# ## #????##??? ### ###?## #?# ####? | | ??# #### ##????????# # "#??##??# ## | | ?# ##??# ####?????# # l "???????# | | # ##????# ##??### Y#?????????# # | | # #??????# #### #??????????# ### # | | # #???????# # @ #?????????????# # | | ###???????## ## #?????????????# # | | ?????????## ### # ######## #????# # | | ????????## ## #?#### #???? # | | ????????# ### #????### #####????#### | | ?### #### #?## ##?????## ###????????# | | ?# ##?########### ### #????# | | ?# ###??# #????###### | | ?## #### #########?????????? | | ??### ## #?????????????????? | | ????## #?## #?????????????????? | | ?????####???# ## ## ##?????????????????? | | ????????????############ ##??????????????????? | | ???????????????????????#######???????????????????? | | ?????????????????????????????????????????????????? | | ?????????????????????????????????????????????????? | | ?????????????????????????????????????????????????? | | ?????????????????????????????????????????????????? | | ?????????????????????????????????????????????????? | | ?????????????????????????????????????????????????? | | ?????????????????????????????????????????????????? | | ?????????????????????????????????????????????????? | | ?????????????????????????????????????????????????? | | ?????????????????????????????????????????????????? | | ?????????????????????????????????????????????????? | +----------------------------------------------------+ Best States ------------- Heat Dissipation 42 Energy Generation 18 Energy Capacity 265 Matter Stores 300 Matter Capacity 300 Sight Range 16 Robot Scan Range 20 Terrain Scan Range 16 Terrain Scan Density 10 Melee Speed Boost 40 Evasion (%) 55 Melee Accuracy 12 Offensive Hacking 20 Item Schematics ----------------- Exp. Sensor Array | -8/Materials | Scanalyzed Airjet | -8/Materials | Scanalyzed Actuator Array | -8/Materials | Scanalyzed Hacking Suite | -8/Materials | Scanalyzed Imp. Carbon-fiber Leg | -7/Factory | Hacked Robot Schematics ------------------ G-34 Mercenary | -10/Materials | Hacked G-47 Trooper | -7/Factory | Hacked Fabricated ------------ Nothing Alien Tech Used ----------------- None Achievements -------------- None Challenges ------------ None Game ------ Seed HeatArmoredFrame Manual? 0 Play Time 01:02:15 Cumulative 20.2 hours Start 2024.03.11 @ 11:30:45 End 2024.03.13 @ 11:56:37 Sessions 3 Manual Loads 0 Difficulty Rogue Special Mode None Game No. 41 Rogue 41 Adventurer 0 Explorer 0 Win Type - Total 1 Types 1/0/0/0/0/0/0/0/0 Lore% 14 Gallery% 25 Achievement% 31 Wizard Run 0 Options --------- Layout 1 ASCII 0 Keyboard 0 Movement Numpad Keybinds 0 Fullscreen 1 Font 24/Smallcaps Map View 50x35 Zoom Use 0% Tactical HUD 1 Map Filters NONE Filters NONE Steam 1 RUN: cea01bc1-b5ab-4b58-b68d-7b031a57dc20